[Event "WYCC 2018 G18"]
[Site "Halkidiki"]
[Date "2018.10.26"]
[Round "7"]
[White "Prakapuk, Vera"]
[Black "Avetisyan, Mariam"]
[Result "0-1"]
[ECO "C17"]
[WhiteElo "1949"]
[BlackElo "2049"]
[Annotator "NA"]
[PlyCount "80"]
[EventDate "2018.10.20"]
[EventType "swiss"]
[EventCountry "GRE"]
[SourceTitle "playchess.com"]
[Source "ChessBase"]
[SourceQuality "1"]
[TimeControl "40/5400+30:1800+30"]

1. e4 {[%emt 0:00:00]} e6 {[%emt 0:00:00]} 2. d4 {[%emt 0:00:00]} d5 {[%emt 0:00:00]} 3. Nc3 {[%emt 0:00:00]} Bb4 {[%emt 0:00:00]} 4. e5 {[%emt 0:00:00]} c5 {[%emt 0:00:00]} 5. Bd2 $11 {[%emt 0:00:00] LiveBook: 1106 Games} Bxc3 {[%emt 0:00:58]} 6. bxc3 {[%emt 0:00:07]} Qc7 {[%emt 0:09:26]} 7. Qg4 {[%emt 0:04:08]} Kf8 {[%emt 0:18:35]} 8. Nf3 {[%emt 0:02:39]} Ne7 {[%emt 0:10:53]} 9. Bd3 {[%emt 0:01:30]} c4 {[%emt 0:07:23]} 10. Be2 {[%emt 0:00:30]} Bd7 {[%emt 0:01:13]} 11. O-O {[%emt 0:04:31]} h6 {[%emt 0:06:04]} 12. h4 {[%emt 0:04:57]} Ba4 {[%emt 0:03:43]} 13. Bd1 {[%emt 0:00:47]} Nbc6 {[%emt 0:03:47]} 14. h5 {[%emt 0:03:00]} Qb6 {[%emt 0:02:10]} 15. Nh4 {[%emt 0:04:47]} Rg8 {[%emt 0:03:38]} 16. Kh1 {[%emt 0:14:42]} Ke8 {[%emt 0:07:11]} 17. f4 {[%emt 0:00:53]} Kd7 {[%emt 0:00:35]} 18. f5 {[%emt 0:00:50]} Raf8 {[%emt 0:02:46]} 19. Qh3 {[%emt 0:00:48]} g5 {[%emt 0:12:05]} 20. fxg6 {[%emt 0:08:48]} fxg6 {[%emt 0:00:25]} 21. Bg4 {[%emt 0:04:32]} Nd8 {[%emt 0:03:56]} 22. Rxf8 {[%emt 0:03:27]} Rxf8 {[%emt 0:00:03]} 23. Nxg6 {[%emt 0:00:54]} Nxg6 {[%emt 0:02:18]} 24. hxg6 {[%emt 0:00:05]} Qb2 {[%emt 0:00:06]} 25. Rc1 {[%emt 0:01:31]} Bxc2 {[%emt 0:01:55]} 26. g7 {[%emt 0:01:06]} Rg8 {[%emt 0:00:56]} 27. Qxh6 {[%emt 0:00:39]} Bf5 {[%emt 0:01:26]} 28. Bh5 {[%emt 0:04:52]} Kc8 {[%emt 0:01:33]} 29. Rd1 {[%emt 0:02:07]} Qc2 {[%emt 0:00:30]} 30. Bg5 {[%emt 0:01:46]} Be4 {[%emt 0:00:41]} 31. Rg1 {[%emt 0:00:29]} Qxc3 {[%emt 0:00:09]} 32. Bg4 {[%emt 0:01:58]} Qg3 {[%emt 0:00:41]} 33. Bxe6+ {[%emt 0:00:52]} Nxe6 {[%emt 0:00:13]} 34. Qxe6+ {[%emt 0:00:04]} Kc7 {[%emt 0:00:02]} 35. Qd6+ {[%emt 0:04:33]} Kc8 {[%emt 0:00:05]} 36. Qh6 {[%emt 0:00:56]} c3 {[%emt 0:00:27]} 37. e6 {[%emt 0:01:33]} c2 {[%emt 0:00:36]} 38. e7 {[%emt 0:00:16]} Kd7 {[%emt 0:00:40]} 39. Bf6 {[%emt 0:05:56]} c1=Q {[%emt 0:00:44]} 40. e8=Q+ {[%emt 0:00:00]} Rxe8 {[%emt 0:00:00]} 0-1

[Event "WYCC 2018 G18"]
[Site "Halkidiki"]
[Date "2018.10.26"]
[Round "7"]
[White "Sevilla, Julia"]
[Black "Nguyen, Hong Ngoc"]
[Result "0-1"]
[ECO "A40"]
[WhiteElo "1947"]
[BlackElo "1861"]
[Annotator "NA"]
[PlyCount "78"]
[EventDate "2018.10.20"]
[EventType "swiss"]
[EventCountry "GRE"]
[SourceTitle "playchess.com"]
[Source "ChessBase"]
[SourceQuality "1"]
[TimeControl "40/5400+30:1800+30"]

1. d4 {[%emt 0:00:00]} e6 {[%emt 0:00:00]} 2. c4 {[%emt 0:00:00]} f5 {[%emt 0:00:00]} 3. g3 {[%emt 0:00:00]} d5 {[%emt 0:00:00]} 4. Bg2 {[%emt 0:00:00]} c6 {[%emt 0:00:06]} 5. Nf3 {[%emt 0:00:00]} Nf6 {[%emt 0:00:08]} 6. O-O {[%emt 0:00:00]} Bd6 {[%emt 0:00:07]} 7. b3 {[%emt 0:00:00]} Qe7 {[%emt 0:00:18]} 8. Bb2 {[%emt 0:00:02]} O-O {[%emt 0:00:20]} 9. Nbd2 {[%emt 0:00:02]} b6 {[%emt 0:04:06]} 10. Rc1 {[%emt 0:00:14]} Bb7 {[%emt 0:00:21]} 11. Ne5 {[%emt 0:00:17]} c5 {[%emt 0:01:09]} 12. Ndf3 {[%emt 0:07:32]} Nbd7 {[%emt 0:00:48]} 13. e3 {[%emt 0:08:30]} Ne4 {[%emt 0:02:26]} 14. Nd3 {[%emt 0:01:55]} Rad8 {[%emt 0:02:10]} 15. Qc2 {[%emt 0:04:33]} cxd4 {[%emt 0:03:07]} 16. exd4 {[%emt 0:01:57]} Rc8 {[%emt 0:00:57]} 17. Qe2 {[%emt 0:06:41]} Ba6 {[%emt 0:03:44]} 18. Nfe5 {[%emt 0:10:22]} Rc7 {[%emt 0:02:29]} 19. cxd5 Rxc1 {[%emt 0:04:14]} 20. Rxc1 {[%emt 0:24:18]} Bxe5 {[%emt 0:00:19]} 21. dxe5 {[%emt 0:00:13]} Nec5 {[%emt 0:01:05]} 22. Ba3 {[%emt 0:00:45]} Bxd3 {[%emt 0:00:38]} 23. Qxd3 {[%emt 0:17:39]} Nxd3 {[%emt 0:00:09]} 24. Bxe7 {[%emt 0:00:01]} Nxc1 {[%emt 0:00:26]} 25. dxe6 {[%emt 0:00:49]} Nxe5 {[%emt 0:04:38]} 26. Bd6 {[%emt 0:04:01]} Ng6 {[%emt 0:03:24]} 27. Bd5 {[%emt 0:03:03]} Re8 {[%emt 0:00:22]} 28. h4 {[%emt 0:00:33]} Ne7 {[%emt 0:00:27]} 29. Bc4 {[%emt 0:00:57]} Kf8 {[%emt 0:00:22]} 30. a4 {[%emt 0:01:34]} Rd8 {[%emt 0:00:34]} 31. Bc7 {[%emt 0:01:28]} Rc8 {[%emt 0:00:42]} 32. Bd6 {[%emt 0:00:00]} Na2 {[%emt 0:02:03]} 33. Kg2 {[%emt 0:01:13]} Nc3 {[%emt 0:00:15]} 34. f3 {[%emt 0:00:34]} Nxa4 {[%emt 0:00:22]} 35. g4 {[%emt 0:04:03]} fxg4 {[%emt 0:00:22]} 36. f4 {[%emt 0:02:48]} Nc5 {[%emt 0:00:39]} 37. f5 {[%emt 0:01:34]} Rc6 {[%emt 0:00:23]} 38. Bf4 {[%emt 0:00:12]} Nxf5 {[%emt 0:00:14]} 39. Bd5 {[%emt 0:00:32]} Rxe6 {[%emt 0:00:58]} 0-1

[Event "WYCC 2018 G18"]
[Site "Halkidiki"]
[Date "2018.10.26"]
[Round "7"]
[White "Golsta, Madara"]
[Black "Cosme Contreras, Trilce"]
[Result "0-1"]
[ECO "B90"]
[WhiteElo "1938"]
[BlackElo "1829"]
[Annotator "NA"]
[PlyCount "58"]
[EventDate "2018.10.20"]
[EventType "swiss"]
[EventCountry "GRE"]
[SourceTitle "playchess.com"]
[Source "ChessBase"]
[SourceQuality "1"]
[TimeControl "40/5400+30:1800+30"]

1. e4 {[%emt 0:00:00]} c5 {[%emt 0:02:53]} 2. Nf3 {[%emt 0:00:00]} d6 {[%emt 0:00:09]} 3. d4 {[%emt 0:00:16]} cxd4 4. Nxd4 {[%emt 0:00:12]} Nf6 {[%emt 0:00:13]} 5. Nc3 {[%emt 0:00:12]} a6 {[%emt 0:00:03]} 6. Qf3 {[%emt 0:01:16]} Qc7 {[%emt 0:03:39]} 7. a4 {[%emt 0:02:51]} Nc6 {[%emt 0:04:43]} 8. Be3 {[%emt 0:03:31]} e6 {[%emt 0:01:32]} 9. h3 {[%emt 0:02:24]} b6 {[%emt 0:01:19]} 10. O-O-O {[%emt 0:07:14]} Bb7 {[%emt 0:01:11]} 11. Bd3 {[%emt 0:09:13]} Rc8 {[%emt 0:02:41]} 12. Qe2 {[%emt 0:07:08]} Nb4 {[%emt 0:03:16]} 13. f4 {[%emt 0:04:53]} Be7 {[%emt 0:01:52]} 14. g4 {[%emt 0:00:32]} Nd7 {[%emt 0:07:07]} 15. Nb3 {[%emt 0:10:58]} Nc5 {[%emt 0:09:38]} 16. Nxc5 {[%emt 0:00:27]} bxc5 {[%emt 0:00:17]} 17. Bc4 {[%emt 0:01:59]} Bf6 {[%emt 0:10:48]} 18. Bd2 {[%emt 0:00:43]} O-O {[%emt 0:01:33]} 19. g5 {[%emt 0:00:56]} Bd4 {[%emt 0:00:27]} 20. Qf3 {[%emt 0:14:39]} Qb6 {[%emt 0:06:26]} 21. Rde1 {[%emt 0:10:56]} d5 {[%emt 0:02:15]} 22. exd5 {[%emt 0:01:11]} exd5 {[%emt 0:05:50]} 23. Bd3 {[%emt 0:00:22]} Nxd3+ {[%emt 0:02:04]} 24. Qxd3 {[%emt 0:00:45]} c4 {[%emt 0:03:17]} 25. Qe2 {[%emt 0:01:34]} Bc6 {[%emt 0:01:12]} 26. f5 {[%emt 0:01:05]} Rb8 {[%emt 0:00:13]} 27. Qf3 {[%emt 0:03:03]} Qxb2+ {[%emt 0:00:42]} 28. Kd1 {[%emt 0:00:06]} Qa1+ {[%emt 0:02:13]} 29. Ke2 {[%emt 0:01:06]} Rfe8+ {[%emt 0:00:04]} 0-1

[Event "WYCC 2018 G18"]
[Site "Halkidiki"]
[Date "2018.10.26"]
[Round "7"]
[White "Belluire, Beatrice"]
[Black "Ni Mhuireagain, Eibhia"]
[Result "1/2-1/2"]
[ECO "B01"]
[WhiteElo "1931"]
[BlackElo "1655"]
[Annotator "NA"]
[PlyCount "87"]
[EventDate "2018.10.20"]
[EventType "swiss"]
[EventCountry "GRE"]
[SourceTitle "playchess.com"]
[Source "ChessBase"]
[SourceQuality "1"]
[TimeControl "40/5400+30:1800+30"]

1. e4 {[%emt 0:00:00]} d5 {[%emt 0:00:00]} 2. exd5 {[%emt 0:00:00]} Qxd5 {[%emt 0:00:00]} 3. Nc3 {[%emt 0:00:00]} Qa5 {[%emt 0:00:00]} 4. d4 {[%emt 0:00:15]} Bf5 {[%emt 0:00:07]} 5. Nf3 {[%emt 0:00:05]} Nd7 {[%emt 0:01:14]} 6. Bd2 {[%emt 0:17:24]} c6 {[%emt 0:00:55]} 7. Bc4 {[%emt 0:01:09]} e6 {[%emt 0:01:39]} 8. d5 {[%emt 0:09:08]} cxd5 {[%emt 0:09:16]} 9. Nxd5 {[%emt 0:00:21]} Qc5 {[%emt 0:02:20]} 10. Qe2 {[%emt 0:02:19]} Ngf6 {[%emt 0:03:01]} 11. Bb4 {[%emt 0:10:51]} Qc8 {[%emt 0:00:57]} 12. Nxf6+ {[%emt 0:01:35]} gxf6 {[%emt 0:09:44]} 13. O-O-O {[%emt 0:08:41]} a6 {[%emt 0:06:26]} 14. Nd4 {[%emt 0:02:36]} Bxb4 {[%emt 0:06:40]} 15. Nxf5 {[%emt 0:00:55]} Ne5 {[%emt 0:06:34]} 16. Bb3 {[%emt 0:07:05]} Qc7 {[%emt 0:19:13]} 17. f4 {[%emt 0:01:57]} Ng6 {[%emt 0:03:31]} 18. Bxe6 {[%emt 0:09:55]} Qxf4+ {[%emt 0:03:59]} 19. Kb1 {[%emt 0:00:01]} O-O {[%emt 0:00:55]} 20. Rd4 {[%emt 0:05:19]} Qe5 {[%emt 0:06:02]} 21. Re4 {[%emt 0:05:11]} Qc5 {[%emt 0:01:51]} 22. Rc4 {[%emt 0:03:33]} Qb6 {[%emt 0:01:59]} 23. Bd7 {[%emt 0:03:02]} Rfd8 {[%emt 0:05:51]} 24. Qh5 {[%emt 0:02:36]} Rxd7 {[%emt 0:04:33]} 25. Qg4 {[%emt 0:03:57]} Rad8 {[%emt 0:01:12]} 26. h4 {[%emt 0:02:33]} Ba3 {[%emt 0:01:07]} 27. b3 {[%emt 0:00:06]} Qe6 {[%emt 0:01:16]} 28. c3 {[%emt 0:01:11]} Rd2 {[%emt 0:00:54]} 29. Re4 {[%emt 0:01:07]} Qd7 {[%emt 0:02:01]} 30. Rhe1 {[%emt 0:01:24]} Rd1+ {[%emt 0:00:56]} 31. Rxd1 {[%emt 0:00:20]} Qxd1+ {[%emt 0:00:05]} 32. Qxd1 {[%emt 0:00:01]} Rxd1+ {[%emt 0:00:07]} 33. Kc2 {[%emt 0:00:01]} Rc1+ {[%emt 0:00:12]} 34. Kd2 {[%emt 0:00:14]} Rg1 {[%emt 0:00:27]} 35. g3 {[%emt 0:00:43]} Rg2+ {[%emt 0:00:10]} 36. Kd3 {[%emt 0:00:19]} Rxa2 {[%emt 0:01:12]} 37. Re8+ {[%emt 0:00:28]} Bf8 {[%emt 0:00:16]} 38. h5 {[%emt 0:00:28]} Ne5+ {[%emt 0:00:33]} 39. Ke3 {[%emt 0:00:30]} Ra1 {[%emt 0:01:38]} 40. Ne7+ {[%emt 0:00:00]} Kg7 {[%emt 0:00:00]} 41. Nf5+ {[%emt 0:03:46]} Kg8 {[%emt 0:01:05]} 42. Ne7+ {[%emt 0:00:25]} Kg7 {[%emt 0:01:32]} 43. Nf5+ {[%emt 0:00:09]} Kg8 {[%emt 0:00:08]} 44. Ne7+ {[%emt 0:00:10]} 1/2-1/2

[Event "WYCC 2018 G18"]
[Site "Halkidiki"]
[Date "2018.10.26"]
[Round "7"]
[White "Zairbek kyzy, Begimay"]
[Black "Priyanka, Kumari"]
[Result "1-0"]
[ECO "B22"]
[WhiteElo "1919"]
[BlackElo "2005"]
[Annotator "NA"]
[PlyCount "101"]
[EventDate "2018.10.20"]
[EventType "swiss"]
[EventCountry "GRE"]
[SourceTitle "playchess.com"]
[Source "ChessBase"]
[SourceQuality "1"]
[TimeControl "40/5400+30:1800+30"]

1. e4 {[%emt 0:00:00]} c5 {[%emt 0:00:05]} 2. c3 {[%emt 0:00:00]} Nf6 {[%emt 0:00:06]} 3. e5 {[%emt 0:00:00]} Nd5 {[%emt 0:00:08]} 4. d4 {[%emt 0:00:00]} cxd4 {[%emt 0:00:19]} 5. cxd4 {[%emt 0:00:00]} e6 {[%emt 0:00:07]} 6. Nf3 {[%emt 0:00:00]} Nc6 {[%emt 0:00:16]} 7. Bc4 {[%emt 0:00:22]} d6 {[%emt 0:00:18]} 8. O-O {[%emt 0:00:07]} Be7 {[%emt 0:00:12]} 9. Qe2 {[%emt 0:00:15]} O-O {[%emt 0:01:51]} 10. Rd1 {[%emt 0:00:04]} Qc7 {[%emt 0:03:47]} 11. Nc3 {[%emt 0:05:50]} Nxc3 {[%emt 0:03:43]} 12. bxc3 {[%emt 0:00:05]} dxe5 {[%emt 0:02:57]} 13. dxe5 {[%emt 0:01:26]} Bd7 {[%emt 0:03:17]} 14. Bd3 {[%emt 0:01:29]} Rfd8 {[%emt 0:01:53]} 15. Qe4 {[%emt 0:10:49]} g6 {[%emt 0:00:44]} 16. h4 {[%emt 0:03:15]} Be8 {[%emt 0:02:56]} 17. Re1 {[%emt 0:13:54]} Rac8 {[%emt 0:05:03]} 18. Bh6 {[%emt 0:08:38]} Nb8 {[%emt 0:03:43]} 19. h5 {[%emt 0:13:56]} Qxc3 {[%emt 0:17:38]} 20. Rac1 {[%emt 0:07:49]} Qb4 {[%emt 0:00:58]} 21. hxg6 {[%emt 0:01:23]} hxg6 {[%emt 0:00:54]} 22. Qe3 {[%emt 0:01:34]} Rxc1 {[%emt 0:05:02]} 23. Rxc1 {[%emt 0:00:27]} Qa3 {[%emt 0:00:11]} 24. Ne1 {[%emt 0:09:50]} Nc6 {[%emt 0:01:49]} 25. Qe2 {[%emt 0:02:14]} Qa5 {[%emt 0:02:55]} 26. Bf4 {[%emt 0:01:38]} Bf8 {[%emt 0:02:31]} 27. Rb1 {[%emt 0:02:32]} Qc7 {[%emt 0:03:02]} 28. Bg5 {[%emt 0:02:52]} Rd5 {[%emt 0:01:04]} 29. f4 {[%emt 0:00:14]} Be7 {[%emt 0:09:34]} 30. Be4 {[%emt 0:02:05]} Rd8 {[%emt 0:04:38]} 31. Nf3 {[%emt 0:00:32]} a6 {[%emt 0:10:10]} 32. Qe1 {[%emt 0:01:57]} f5 {[%emt 0:13:04]} 33. exf6 {[%emt 0:00:50]} Bc5+ {[%emt 0:00:06]} 34. Kh1 {[%emt 0:01:39]} Rd7 {[%emt 0:00:19]} 35. g3 {[%emt 0:03:19]} b6 {[%emt 0:01:09]} 36. Kg2 {[%emt 0:01:19]} Qd6 {[%emt 0:00:31]} 37. Qc3 {[%emt 0:03:08]} Nd4 {[%emt 0:00:47]} 38. Rh1 {[%emt 0:00:24]} Bf7 {[%emt 0:00:32]} 39. Ne5 {[%emt 0:01:04]} Nb5 {[%emt 0:00:14]} 40. Nxg6 {[%emt 0:00:00]} Qd2+ {[%emt 0:00:00]} 41. Qxd2 {[%emt 0:05:03]} Rxd2+ {[%emt 0:00:55]} 42. Kf3 {[%emt 0:03:51]} Bxg6 {[%emt 0:01:35]} 43. Bxg6 {[%emt 0:00:14]} Rd7 {[%emt 0:01:09]} 44. f7+ {[%emt 0:00:53]} Kg7 {[%emt 0:00:16]} 45. Rh7+ {[%emt 0:01:21]} Kxg6 {[%emt 0:00:11]} 46. f8=N+ {[%emt 0:00:09]} Bxf8 {[%emt 0:00:14]} 47. Rxd7 {[%emt 0:00:04]} Nc3 {[%emt 0:01:00]} 48. Be7 {[%emt 0:01:27]} Bg7 {[%emt 0:00:45]} 49. a3 {[%emt 0:00:50]} Nd5 {[%emt 0:00:27]} 50. Bd8 {[%emt 0:00:57]} Bf8 {[%emt 0:02:44]} 51. f5+ {[%emt 0:00:28]} 1-0

[Event "WYCC 2018 G18"]
[Site "Halkidiki"]
[Date "2018.10.26"]
[Round "7"]
[White "Gillis Onieva, Celia"]
[Black "Miller, Rachel"]
[Result "1-0"]
[ECO "A43"]
[WhiteElo "1892"]
[BlackElo "1859"]
[Annotator "NA"]
[PlyCount "139"]
[EventDate "2018.10.20"]
[EventType "swiss"]
[EventCountry "GRE"]
[SourceTitle "playchess.com"]
[Source "ChessBase"]
[SourceQuality "1"]
[TimeControl "40/5400+30:1800+30"]

1. d4 {[%emt 0:00:00]} Nf6 {[%emt 0:00:00]} 2. Nf3 {[%emt 0:00:00]} c5 {[%emt 0:00:00]} 3. d5 {[%emt 0:00:03]} b5 {[%emt 0:00:10]} 4. e4 {[%emt 0:00:30]} Nxe4 {[%emt 0:06:48]} 5. Bd3 {[%emt 0:00:18]} Nf6 {[%emt 0:08:47]} 6. Bxb5 {[%emt 0:02:09]} Bb7 {[%emt 0:00:47]} 7. Nc3 {[%emt 0:03:27]} g6 {[%emt 0:01:22]} 8. O-O {[%emt 0:02:53]} Bg7 {[%emt 0:00:09]} 9. d6 O-O {[%emt 0:11:54]} 10. dxe7 {[%emt 0:12:33]} Qxe7 {[%emt 0:00:07]} 11. Bg5 {[%emt 0:05:38]} d6 {[%emt 0:07:55]} 12. Re1 {[%emt 0:05:23]} Qc7 {[%emt 0:03:02]} 13. Bc4 {[%emt 0:10:16]} a6 {[%emt 0:03:42]} 14. Nd5 {[%emt 0:05:32]} Bxd5 {[%emt 0:11:02]} 15. Bxd5 {[%emt 0:00:06]} Nc6 {[%emt 0:00:09]} 16. c3 {[%emt 0:10:00]} Rab8 {[%emt 0:01:24]} 17. Re2 {[%emt 0:05:53]} Ne7 {[%emt 0:05:46]} 18. Bc4 {[%emt 0:05:17]} Rb6 {[%emt 0:01:22]} 19. Qe1 {[%emt 0:03:02]} Nc6 {[%emt 0:03:00]} 20. Rd1 {[%emt 0:02:31]} Rfb8 {[%emt 0:07:57]} 21. Bf4 {[%emt 0:03:22]} Bf8 {[%emt 0:00:08]} 22. Ng5 {[%emt 0:08:51]} Nd8 {[%emt 0:01:23]} 23. b3 {[%emt 0:00:36]} a5 {[%emt 0:03:32]} 24. Ne4 {[%emt 0:06:24]} Nxe4 {[%emt 0:05:14]} 25. Rxe4 {[%emt 0:00:05]} Nc6 {[%emt 0:01:17]} 26. Qe2 {[%emt 0:02:36]} Ra8 {[%emt 0:12:03]} 27. Qd3 {[%emt 0:00:58]} Ne5 {[%emt 0:00:22]} 28. Bxe5 {[%emt 0:00:59]} dxe5 {[%emt 0:00:04]} 29. Qd7 {[%emt 0:00:20]} Qxd7 {[%emt 0:01:11]} 30. Rxd7 {[%emt 0:00:04]} Rd6 {[%emt 0:00:12]} 31. Bxf7+ {[%emt 0:00:55]} Kg7 {[%emt 0:00:19]} 32. Rxd6 {[%emt 0:00:28]} Bxd6 {[%emt 0:00:09]} 33. Bd5 {[%emt 0:00:56]} Ra7 {[%emt 0:00:36]} 34. Kf1 {[%emt 0:00:25]} Kf6 {[%emt 0:01:03]} 35. Ke2 {[%emt 0:00:06]} Rd7 {[%emt 0:00:26]} 36. Kd3 {[%emt 0:01:58]} Be7 {[%emt 0:00:30]} 37. Kc4 {[%emt 0:00:13]} g5 {[%emt 0:00:06]} 38. Re2 {[%emt 0:00:24]} h6 {[%emt 0:00:32]} 39. Bf3 {[%emt 0:00:49]} Rd1 {[%emt 0:03:16]} 40. Kb5 {[%emt 0:00:00]} Rc1 {[%emt 0:00:00]} 41. c4 {[%emt 0:02:35]} Rd1 {[%emt 0:03:28]} 42. Rxe5 {[%emt 0:05:33]} Rh1 {[%emt 0:05:40]} 43. Re2 {[%emt 0:14:24]} Rxh2 {[%emt 0:00:10]} 44. Kxa5 {[%emt 0:00:10]} Rh4 {[%emt 0:00:48]} 45. a4 {[%emt 0:00:49]} Rd4 {[%emt 0:01:21]} 46. Bd5 {[%emt 0:02:07]} Bd8+ {[%emt 0:01:43]} 47. Kb5 {[%emt 0:00:04]} Rd3 {[%emt 0:02:12]} 48. Re3 {[%emt 0:01:39]} Rd2 {[%emt 0:00:46]} 49. Kxc5 {[%emt 0:02:40]} Rxf2 {[%emt 0:01:22]} 50. Rf3+ {[%emt 0:00:53]} Rxf3 {[%emt 0:00:06]} 51. Bxf3 {[%emt 0:00:04]} Ke5 {[%emt 0:02:15]} 52. b4 {[%emt 0:00:11]} Be7+ {[%emt 0:00:30]} 53. Kb5 {[%emt 0:00:05]} Kd6 {[%emt 0:00:59]} 54. c5+ {[%emt 0:00:07]} Kc7 {[%emt 0:00:08]} 55. Kc4 {[%emt 0:00:10]} Kb8 {[%emt 0:01:48]} 56. b5 {[%emt 0:00:10]} h5 {[%emt 0:01:00]} 57. Bxh5 {[%emt 0:00:24]} Bd8 {[%emt 0:00:27]} 58. b6 {[%emt 0:00:27]} Kb7 {[%emt 0:01:18]} 59. Kb5 {[%emt 0:00:12]} g4 {[%emt 0:00:35]} 60. Bxg4 {[%emt 0:00:12]} Bxb6 {[%emt 0:00:58]} 61. cxb6 {[%emt 0:00:11]} Kb8 {[%emt 0:00:14]} 62. a5 {[%emt 0:00:09]} Kb7 {[%emt 0:01:03]} 63. a6+ {[%emt 0:00:06]} Kb8 {[%emt 0:01:19]} 64. a7+ {[%emt 0:00:13]} Kb7 {[%emt 0:00:15]} 65. Bf3+ {[%emt 0:00:06]} Kc8 {[%emt 0:00:10]} 66. a8=Q+ {[%emt 0:00:20]} Kd7 {[%emt 0:00:05]} 67. Qc6+ {[%emt 0:00:15]} Kd8 {[%emt 0:00:20]} 68. Qc7+ {[%emt 0:00:13]} Ke8 {[%emt 0:00:11]} 69. Bh5+ {[%emt 0:00:08]} Kf8 {[%emt 0:00:05]} 70. Qf7# {[%emt 0:00:06]} 1-0

[Event "WYCC 2018 G18"]
[Site "Halkidiki"]
[Date "2018.10.26"]
[Round "7"]
[White "Nistor, Valentina"]
[Black "Martos Amiguet, Valentina"]
[Result "0-1"]
[ECO "B28"]
[WhiteElo "1881"]
[BlackElo "1775"]
[Annotator "NA"]
[PlyCount "98"]
[EventDate "2018.10.20"]
[EventType "swiss"]
[EventCountry "GRE"]
[SourceTitle "playchess.com"]
[Source "ChessBase"]
[SourceQuality "1"]
[TimeControl "40/5400+30:1800+30"]

1. e4 c5 2. Nf3 a6 3. c3 d5 4. exd5 Qxd5 5. d4 e6 6. Be3 cxd4 7. cxd4 Nf6 8. Nc3 Qd6 9. Bd3 Be7 10. O-O O-O 11. Rc1 Nc6 12. a3 h6 13. Qd2 Rd8 14. Rfd1 b5 15. Ne4 Nxe4 16. Bxe4 Bb7 17. Rc2 Rac8 18. Rdc1 Bf6 19. Rd1 Qe7 20. Qe2 Na5 21. Bxb7 Qxb7 22. Ne5 Qd5 23. Rcd2 Nc4 24. Rd3 Qe4 25. f3 Qd5 26. Ng4 Bg5 27. f4 Be7 28. Bc1 Nd6 29. Qe5 Nf5 30. Ne3 Qxe5 31. fxe5 Nxd4 32. Rxd4 Rxd4 33. Rxd4 Rxc1+ 34. Kf2 Bc5 35. Rd8+ Kh7 36. Kf3 Bxe3 37. Kxe3 Rc2 38. Kf3 Rxb2 39. Rd3 Rc2 40. h3 Rc4 41. Ke3 h5 42. Rd7 Kg6 43. Kd3 Ra4 44. Kc3 Rxa3+ 45. Kb4 Re3 46. Ra7 Rxe5 47. Rxa6 Re2 48. Kxb5 Rxg2 49. Ra3 h4 0-1

[Event "WYCC 2018 G18"]
[Site "Halkidiki"]
[Date "2018.10.26"]
[Round "7"]
[White "Buchta, Agnieszka"]
[Black "Perry, Tal"]
[Result "1-0"]
[ECO "C55"]
[WhiteElo "1879"]
[BlackElo "1702"]
[Annotator "NA"]
[PlyCount "39"]
[EventDate "2018.10.20"]
[EventType "swiss"]
[EventCountry "GRE"]
[SourceTitle "playchess.com"]
[Source "ChessBase"]
[SourceQuality "1"]
[TimeControl "40/5400+30:1800+30"]

1. e4 {[%emt 0:00:00]} e5 {[%emt 0:00:00]} 2. Nf3 {[%emt 0:00:00]} Nc6 {[%emt 0:00:00]} 3. Bc4 {[%emt 0:00:00]} Nf6 {[%emt 0:00:00]} 4. d4 {[%emt 0:00:43]} exd4 {[%emt 0:00:04]} 5. e5 {[%emt 0:00:22]} d5 {[%emt 0:00:24]} 6. Bb5 {[%emt 0:00:08]} Ne4 {[%emt 0:00:14]} 7. Nxd4 {[%emt 0:00:24]} Bd7 {[%emt 0:00:14]} 8. Bxc6 {[%emt 0:00:18]} bxc6 {[%emt 0:00:09]} 9. O-O {[%emt 0:00:28]} Bc5 {[%emt 0:00:13]} 10. f3 {[%emt 0:00:29]} Ng5 {[%emt 0:00:13]} 11. f4 {[%emt 0:00:09]} Ne4 {[%emt 0:00:08]} 12. Be3 {[%emt 0:00:11]} Bb6 {[%emt 0:01:11]} 13. Nc3 {[%emt 0:01:13]} Nxc3 {[%emt 0:00:13]} 14. bxc3 {[%emt 0:00:02]} Qe7 {[%emt 0:02:16]} 15. Qf3 {[%emt 0:05:26]} O-O {[%emt 0:01:58]} 16. Rae1 {[%emt 0:02:47]} Qa3 {[%emt 0:08:58]} 17. f5 {[%emt 0:28:34]} Qxc3 {[%emt 0:06:39]} 18. Qf4 {[%emt 0:23:34]} c5 {[%emt 0:39:42]} 19. f6 {[%emt 0:11:25]} cxd4 {[%emt 0:00:35]} 20. Qg5 1-0

[Event "WYCC 2018 G18"]
[Site "Halkidiki"]
[Date "2018.10.26"]
[Round "7"]
[White "Muratova, Saltanat"]
[Black "Bauyrzhan, Arnash"]
[Result "1/2-1/2"]
[ECO "B42"]
[WhiteElo "1859"]
[BlackElo "2011"]
[Annotator "NA"]
[PlyCount "107"]
[EventDate "2018.10.20"]
[EventType "swiss"]
[EventCountry "GRE"]
[SourceTitle "playchess.com"]
[Source "ChessBase"]
[SourceQuality "1"]
[TimeControl "40/5400+30:1800+30"]

1. e4 c5 2. Nf3 e6 3. d4 cxd4 4. Nxd4 a6 5. Bd3 Nf6 6. O-O d6 7. Qe2 Be7 8. c4 O-O 9. b3 b6 10. Bb2 Bb7 11. Nd2 Nbd7 12. f4 Qc7 13. Kh1 Rac8 14. Rae1 Nc5 15. Bc2 e5 16. fxe5 dxe5 17. Nf5 Rfe8 18. Qf3 Bf8 19. Qg3 Rcd8 20. Nf3 Ncxe4 21. Bxe4 Nxe4 22. Rxe4 Bxe4 23. Nh6+ Kh8 24. Nxe5 Rxe5 25. Bxe5 Qb7 26. Bc7 Re8 27. Nxf7+ Kg8 28. Bd6 Bg6 29. Ng5 Be7 30. Qe5 Bf6 31. Qg3 Bxg5 32. Qxg5 Qe4 33. h3 Qe2 34. Qf4 h6 35. a4 Kh7 36. Bc7 Re7 37. Rc1 Rf7 38. Qg3 Rf2 39. Rg1 Be4 40. Bxb6 Rf6 41. a5 Rg6 42. Qf2 Qd3 43. Qe3 Qxe3 44. Bxe3 Rg3 45. Bf4 Rxh3+ 46. Bh2 Rxb3 47. Re1 Rb1 48. Rxb1 Bxb1 49. Kg1 Kg6 50. Kf2 Kf5 51. Ke3 h5 52. Bc7 h4 53. Bd8 g5 54. Be7 1/2-1/2